[Event "Titled Tuesday Blitz December 20 Early 2022"]
[White "De Firmian, Nick"]
[Black "Carvalho, Heracles Elieser"]
[WhiteFideId "2000105"]
[BlackFideId "22751114"]
[WhiteElo "2460"]
[BlackElo "1895"]
[Result "0-1"]
[Round "06"]
[TimeControl "180+2"]
[Date "2022.12.20"]
[WhiteClock "0:00:08"]
[BlackClock "0:00:04"]

1. Nf3 {[%clk 0:03:00]}  d5 {[%clk 0:02:59]} 2. g3 {[%clk 0:03:01]}  Nf6 {[%clk 0:02:57]} 3. Bg2 {[%clk 0:03:02]}  Bf5 {[%clk 0:02:57]} 4. O-O {[%clk 0:03:02]}  e6 {[%clk 0:02:57]} 5. d4 {[%clk 0:03:02]}  h6 {[%clk 0:02:58]} 6. c4 {[%clk 0:03:03]}  c6 {[%clk 0:02:58]} 7. Nc3 {[%clk 0:03:02]}  Nbd7 {[%clk 0:02:58]} 8. b3 {[%clk 0:03:00]}  Be7 {[%clk 0:02:59]} 9. Bb2 {[%clk 0:03:00]}  O-O {[%clk 0:02:57]} 10. a3 {[%clk 0:03:00]}  Ne4 {[%clk 0:02:57]} 11. Nxe4 {[%clk 0:03:00]}  Bxe4 {[%clk 0:02:52]} 12. e3 {[%clk 0:02:49]}  a5 {[%clk 0:02:50]} 13. Nd2 {[%clk 0:02:47]}  Bd3 {[%clk 0:02:45]} 14. Re1 {[%clk 0:02:46]}  Qb6 {[%clk 0:02:45]} 15. Bc3 {[%clk 0:02:29]}  a4 {[%clk 0:02:37]} 16. c5 {[%clk 0:02:20]}  Qa6 {[%clk 0:02:34]} 17. b4 {[%clk 0:02:17]}  b6 {[%clk 0:02:24]} 18. Nf3 {[%clk 0:02:16]}  bxc5 {[%clk 0:02:22]} 19. dxc5 {[%clk 0:02:14]}  Bf6 {[%clk 0:01:42]} 20. Qd2 {[%clk 0:02:03]}  e5 {[%clk 0:01:33]} 21. Red1 {[%clk 0:01:50]}  e4 {[%clk 0:01:15]} 22. Nd4 {[%clk 0:01:45]}  Ne5 {[%clk 0:01:14]} 23. Qb2 {[%clk 0:01:24]}  Qc8 {[%clk 0:01:11]} 24. Rac1 {[%clk 0:01:05]}  h5 {[%clk 0:01:02]} 25. h4 {[%clk 0:01:04]}  Qg4 {[%clk 0:00:57]} 26. Qd2 {[%clk 0:00:53]}  Bxh4 {[%clk 0:00:30]} 27. Nxc6 {[%clk 0:00:26]}  Nxc6 {[%clk 0:00:07]} 28. gxh4 {[%clk 0:00:21]}  Qxh4 {[%clk 0:00:07]} 29. f3 {[%clk 0:00:14]}  f5 {[%clk 0:00:05]} 30. Qf2 {[%clk 0:00:14]}  Qg5 {[%clk 0:00:04]} 31. Kh2 {[%clk 0:00:12]}  Rae8 {[%clk 0:00:03]} 32. Rg1 {[%clk 0:00:12]}  Ne5 {[%clk 0:00:03]} 33. f4 {[%clk 0:00:12]}  Ng4+ {[%clk 0:00:04]} 34. Kg3 {[%clk 0:00:07]}  Nxf2+ {[%clk 0:00:04]} 35. Kxf2 {[%clk 0:00:08]}  Qh4# {[%clk 0:00:04]} 0-1


[Site "https://www.chess.com"]

[Event "Titled Tuesday Blitz December 20 Early 2022"]
[White "Derybas, Igor"]
[Black "ProfessorChess101"]
[WhiteFideId "41846400"]
[WhiteElo "1490"]
[BlackElo "2662"]
[Result "0-1"]
[Round "06"]
[TimeControl "180+2"]
[Date "2022.12.20"]
[WhiteClock "0:00:35"]
[BlackClock "0:00:11"]

1. d4 {[%clk 0:02:53]}  Nf6 {[%clk 0:02:58]} 2. c4 {[%clk 0:02:53]}  e6 {[%clk 0:02:56]} 3. Nc3 {[%clk 0:02:52]}  d5 {[%clk 0:02:56]} 4. cxd5 {[%clk 0:02:51]}  exd5 {[%clk 0:02:56]} 5. Bg5 {[%clk 0:02:52]}  c6 {[%clk 0:02:56]} 6. e3 {[%clk 0:02:51]}  Be7 {[%clk 0:02:53]} 7. Bd3 {[%clk 0:02:50]}  Nbd7 {[%clk 0:02:53]} 8. Nge2 {[%clk 0:02:50]}  Nf8 {[%clk 0:02:54]} 9. Qc2 {[%clk 0:02:49]}  Ne6 {[%clk 0:02:54]} 10. Bh4 {[%clk 0:02:50]}  g6 {[%clk 0:02:54]} 11. O-O {[%clk 0:02:49]}  O-O {[%clk 0:02:55]} 12. f3 {[%clk 0:02:48]}  b5 {[%clk 0:02:55]} 13. Rad1 {[%clk 0:02:40]}  a5 {[%clk 0:02:53]} 14. h3 {[%clk 0:02:33]}  Ba6 {[%clk 0:02:52]} 15. Kh1 {[%clk 0:02:30]}  a4 {[%clk 0:02:40]} 16. a3 {[%clk 0:02:29]}  Re8 {[%clk 0:02:26]} 17. Na2 {[%clk 0:02:24]}  Rc8 {[%clk 0:02:23]} 18. Nb4 {[%clk 0:02:15]}  Bb7 {[%clk 0:02:23]} 19. Nc3 {[%clk 0:02:11]}  Qc7 {[%clk 0:02:15]} 20. Qf2 {[%clk 0:02:02]}  Nh5 {[%clk 0:02:12]} 21. Bxe7 {[%clk 0:01:49]}  Ng3+ {[%clk 0:02:08]} 22. Kg1 {[%clk 0:01:46]}  Nxf1 {[%clk 0:01:58]} 23. Bh4 {[%clk 0:01:40]}  g5 {[%clk 0:01:17]} 24. Rxf1 {[%clk 0:01:38]}  gxh4 {[%clk 0:01:17]} 25. Qxh4 {[%clk 0:01:39]}  Nf8 {[%clk 0:01:14]} 26. e4 {[%clk 0:01:34]}  Qe7 {[%clk 0:01:06]} 27. Qxe7 {[%clk 0:01:18]}  Rxe7 {[%clk 0:01:06]} 28. exd5 {[%clk 0:01:19]}  cxd5 {[%clk 0:00:44]} 29. Bxb5 {[%clk 0:01:19]}  Ne6 {[%clk 0:00:39]} 30. Rd1 {[%clk 0:01:15]}  Nf4 {[%clk 0:00:26]} 31. Kf2 {[%clk 0:01:01]}  Kh8 {[%clk 0:00:14]} 32. Bxa4 {[%clk 0:00:58]}  Rg8 {[%clk 0:00:14]} 33. Rg1 {[%clk 0:00:50]}  Bc8 {[%clk 0:00:13]} 34. Nbxd5 {[%clk 0:00:38]}  Nd3+ {[%clk 0:00:11]} 35. Kf1 {[%clk 0:00:35]}  Re1# {[%clk 0:00:11]} 0-1


[Site "https://www.chess.com"]

[Event "Titled Tuesday Blitz December 20 Early 2022"]
[White "Dreux, Vincent"]
[Black "Sokolov, Ivan"]
[WhiteFideId "658960"]
[BlackFideId "14400030"]
[WhiteElo "1937"]
[BlackElo "2590"]
[Result "0-1"]
[Round "06"]
[TimeControl "180+2"]
[Date "2022.12.20"]
[WhiteClock "0:00:07"]
[BlackClock "0:01:15"]

1. e4 {[%clk 0:03:00]}  d6 {[%clk 0:03:00]} 2. d4 {[%clk 0:03:00]}  Nf6 {[%clk 0:03:00]} 3. Nc3 {[%clk 0:03:01]}  g6 {[%clk 0:03:00]} 4. Be3 {[%clk 0:03:01]}  Bg7 {[%clk 0:03:01]} 5. Qd2 {[%clk 0:03:01]}  a6 {[%clk 0:02:56]} 6. Bh6 {[%clk 0:03:00]}  Bxh6 {[%clk 0:02:52]} 7. Qxh6 {[%clk 0:03:01]}  Nc6 {[%clk 0:02:44]} 8. O-O-O {[%clk 0:02:59]}  e5 {[%clk 0:02:41]} 9. dxe5 {[%clk 0:02:50]}  Nxe5 {[%clk 0:02:42]} 10. f3 {[%clk 0:02:47]}  Be6 {[%clk 0:02:36]} 11. Nge2 {[%clk 0:02:29]}  Qe7 {[%clk 0:02:35]} 12. Nf4 {[%clk 0:02:26]}  O-O-O {[%clk 0:02:34]} 13. Nfd5 {[%clk 0:02:19]}  Bxd5 {[%clk 0:02:32]} 14. Nxd5 {[%clk 0:02:20]}  Nxd5 {[%clk 0:02:32]} 15. Rxd5 {[%clk 0:02:20]}  f5 {[%clk 0:02:25]} 16. exf5 {[%clk 0:02:12]}  Qf7 {[%clk 0:02:24]} 17. Rd1 {[%clk 0:01:45]}  Qxf5 {[%clk 0:02:23]} 18. Qe3 {[%clk 0:01:38]}  Kb8 {[%clk 0:02:18]} 19. Qb3 {[%clk 0:01:38]}  Ka8 {[%clk 0:02:13]} 20. Kb1 {[%clk 0:01:09]}  Rhe8 {[%clk 0:02:13]} 21. h4 {[%clk 0:01:01]}  Re7 {[%clk 0:02:09]} 22. h5 {[%clk 0:00:57]}  g5 {[%clk 0:02:09]} 23. a3 {[%clk 0:00:45]}  h6 {[%clk 0:02:08]} 24. Bc4 {[%clk 0:00:35]}  Nxc4 {[%clk 0:02:06]} 25. Qxc4 {[%clk 0:00:36]}  Rde8 {[%clk 0:02:06]} 26. Rd3 {[%clk 0:00:32]}  Qe6 {[%clk 0:01:56]} 27. Qxe6 {[%clk 0:00:29]}  Rxe6 {[%clk 0:01:56]} 28. Kc1 {[%clk 0:00:30]}  Re2 {[%clk 0:01:55]} 29. Rd2 {[%clk 0:00:30]}  Kb8 {[%clk 0:01:42]} 30. Kd1 {[%clk 0:00:30]}  R2e5 {[%clk 0:01:43]} 31. c4 {[%clk 0:00:28]}  Kc8 {[%clk 0:01:43]} 32. Kc2 {[%clk 0:00:26]}  Kd7 {[%clk 0:01:43]} 33. Rhd1 {[%clk 0:00:27]}  Kc6 {[%clk 0:01:42]} 34. Rd5 {[%clk 0:00:25]}  Rxd5 {[%clk 0:01:33]} 35. Rxd5 {[%clk 0:00:25]}  Re2+ {[%clk 0:01:34]} 36. Rd2 {[%clk 0:00:24]}  Re1 {[%clk 0:01:34]} 37. Kc3 {[%clk 0:00:18]}  Rh1 {[%clk 0:01:34]} 38. g4 {[%clk 0:00:16]}  Rf1 {[%clk 0:01:34]} 39. Rd3 {[%clk 0:00:16]}  a5 {[%clk 0:01:28]} 40. b4 {[%clk 0:00:14]}  a4 {[%clk 0:01:27]} 41. b5+ {[%clk 0:00:15]}  Kc5 {[%clk 0:01:27]} 42. Rd5+ {[%clk 0:00:15]}  Kb6 {[%clk 0:01:28]} 43. Rf5 {[%clk 0:00:14]}  Rb1 {[%clk 0:01:28]} 44. Rf6 {[%clk 0:00:13]}  Rb3+ {[%clk 0:01:29]} 45. Kd4 {[%clk 0:00:13]}  Rxa3 {[%clk 0:01:29]} 46. Rxh6 {[%clk 0:00:14]}  Rxf3 {[%clk 0:01:29]} 47. Rg6 {[%clk 0:00:14]}  Rf4+ {[%clk 0:01:30]} 48. Kc3 {[%clk 0:00:12]}  Rxg4 {[%clk 0:01:31]} 49. Kb4 {[%clk 0:00:12]}  c5+ {[%clk 0:01:16]} 50. bxc6 {[%clk 0:00:11]}  Kxc6 {[%clk 0:01:14]} 51. h6 {[%clk 0:00:09]}  b5 {[%clk 0:01:12]} 52. h7 {[%clk 0:00:07]}  Rxc4+ {[%clk 0:01:13]} 53. Ka5 {[%clk 0:00:07]}  Rh4 {[%clk 0:01:14]} 54. Rxg5 {[%clk 0:00:05]}  Rxh7 {[%clk 0:01:12]} 55. Rxb5 {[%clk 0:00:05]}  Ra7+ {[%clk 0:01:11]} 56. Kb4 {[%clk 0:00:06]}  Rb7 {[%clk 0:01:12]} 57. Rxb7 {[%clk 0:00:06]}  Kxb7 {[%clk 0:01:13]} 58. Kxa4 {[%clk 0:00:06]}  Kc6 {[%clk 0:01:14]} 59. Kb4 {[%clk 0:00:07]}  Kd5 {[%clk 0:01:15]} 60. Kc3 {[%clk 0:00:07]}  Ke4 {[%clk 0:01:15]} 0-1


[Site "https://www.chess.com"]

[Event "Titled Tuesday Blitz December 20 Early 2022"]
[White "Durin, Jean-Pierre"]
[Black "MusicCityMaster"]
[WhiteFideId "26026600"]
[WhiteElo "1819"]
[BlackElo "2329"]
[Result "1/2-1/2"]
[Round "06"]
[TimeControl "180+2"]
[Date "2022.12.20"]
[WhiteClock "0:00:14"]
[BlackClock "0:00:09"]

1. d4 {[%clk 0:03:00]}  Nf6 {[%clk 0:02:59]} 2. Bg5 {[%clk 0:03:01]}  c5 {[%clk 0:02:57]} 3. Bxf6 {[%clk 0:03:01]}  gxf6 {[%clk 0:02:57]} 4. c3 {[%clk 0:03:02]}  Qb6 {[%clk 0:02:56]} 5. Qc2 {[%clk 0:03:02]}  Bg7 {[%clk 0:02:52]} 6. e3 {[%clk 0:03:01]}  d6 {[%clk 0:02:50]} 7. Nd2 {[%clk 0:03:00]}  f5 {[%clk 0:02:50]} 8. g3 {[%clk 0:02:59]}  Nd7 {[%clk 0:02:49]} 9. Bg2 {[%clk 0:02:59]}  Nf6 {[%clk 0:02:49]} 10. Ne2 {[%clk 0:02:56]}  O-O {[%clk 0:02:47]} 11. O-O {[%clk 0:02:56]}  e5 {[%clk 0:02:43]} 12. dxe5 {[%clk 0:02:44]}  dxe5 {[%clk 0:02:43]} 13. e4 {[%clk 0:02:45]}  fxe4 {[%clk 0:02:35]} 14. Nxe4 {[%clk 0:02:46]}  Nxe4 {[%clk 0:02:34]} 15. Bxe4 {[%clk 0:02:41]}  f5 {[%clk 0:02:34]} 16. Bd5+ {[%clk 0:02:37]}  Kh8 {[%clk 0:02:34]} 17. f4 {[%clk 0:02:31]}  e4 {[%clk 0:02:33]} 18. Kg2 {[%clk 0:02:22]}  Bd7 {[%clk 0:02:26]} 19. Rfd1 {[%clk 0:02:13]}  Be8 {[%clk 0:02:24]} 20. g4 {[%clk 0:02:01]}  fxg4 {[%clk 0:02:17]} 21. Bxe4 {[%clk 0:02:00]}  Bc6 {[%clk 0:02:00]} 22. Rd2 {[%clk 0:01:26]}  Rae8 {[%clk 0:01:58]} 23. Ng3 {[%clk 0:00:59]}  Rxf4 {[%clk 0:01:45]} 24. Re1 {[%clk 0:00:58]}  c4 {[%clk 0:01:26]} 25. Rde2 {[%clk 0:00:57]}  Ref8 {[%clk 0:01:23]} 26. Bxc6 {[%clk 0:00:47]}  Qxc6+ {[%clk 0:01:23]} 27. Kg1 {[%clk 0:00:47]}  Qc5+ {[%clk 0:00:57]} 28. Kg2 {[%clk 0:00:41]}  Qd5+ {[%clk 0:00:57]} 29. Kg1 {[%clk 0:00:40]}  b5 {[%clk 0:00:48]} 30. Qd2 {[%clk 0:00:39]}  Qc5+ {[%clk 0:00:45]} 31. Qe3 {[%clk 0:00:39]}  Qxe3+ {[%clk 0:00:42]} 32. Rxe3 {[%clk 0:00:39]}  b4 {[%clk 0:00:43]} 33. Ne2 {[%clk 0:00:29]}  Rf2 {[%clk 0:00:39]} 34. Re4 {[%clk 0:00:26]}  bxc3 {[%clk 0:00:39]} 35. bxc3 {[%clk 0:00:26]}  h5 {[%clk 0:00:30]} 36. Rxc4 {[%clk 0:00:25]}  Bh6 {[%clk 0:00:28]} 37. Re4 {[%clk 0:00:15]}  Bd2 {[%clk 0:00:18]} 38. Rd1 {[%clk 0:00:15]}  Bh6 {[%clk 0:00:17]} 39. Rd5 {[%clk 0:00:14]}  Rf1+ {[%clk 0:00:13]} 40. Kg2 {[%clk 0:00:15]}  R8f2+ {[%clk 0:00:14]} 41. Kg3 {[%clk 0:00:15]}  Rf3+ {[%clk 0:00:13]} 42. Kg2 {[%clk 0:00:15]}  R1f2+ {[%clk 0:00:13]} 43. Kg1 {[%clk 0:00:16]}  Be3 {[%clk 0:00:13]} 44. Rxh5+ {[%clk 0:00:14]}  Kg7 {[%clk 0:00:14]} 45. Rxe3 {[%clk 0:00:13]}  Rf1+ {[%clk 0:00:12]} 46. Kg2 {[%clk 0:00:13]}  R1f2+ {[%clk 0:00:13]} 47. Kg1 {[%clk 0:00:13]}  Rf1+ {[%clk 0:00:12]} 48. Kg2 {[%clk 0:00:13]}  R1f2+ {[%clk 0:00:09]} 49. Kg1 {[%clk 0:00:14]} 1/2-1/2


[Site "https://www.chess.com"]

[Event "Titled Tuesday Blitz December 20 Early 2022"]
[White "Elbek_Jumanov"]
[Black "Felix-Rose"]
[WhiteElo "2435"]
[BlackElo "2299"]
[Result "0-1"]
[Round "06"]
[TimeControl "180+2"]
[Date "2022.12.20"]
[WhiteClock "0:00:03"]
[BlackClock "0:00:12"]

1. c4 {[%clk 0:02:52]}  e6 {[%clk 0:02:59]} 2. Nf3 {[%clk 0:02:51]}  d5 {[%clk 0:03:00]} 3. d4 {[%clk 0:02:51]}  Nf6 {[%clk 0:03:00]} 4. g3 {[%clk 0:02:51]}  dxc4 {[%clk 0:03:00]} 5. Qa4+ {[%clk 0:02:49]}  Nbd7 {[%clk 0:02:59]} 6. Bg2 {[%clk 0:02:47]}  a6 {[%clk 0:02:59]} 7. Qxc4 {[%clk 0:02:46]}  b5 {[%clk 0:02:59]} 8. Qc2 {[%clk 0:02:46]}  Bb7 {[%clk 0:03:00]} 9. O-O {[%clk 0:02:46]}  c5 {[%clk 0:02:58]} 10. Rd1 {[%clk 0:02:39]}  Rc8 {[%clk 0:02:56]} 11. Qb3 {[%clk 0:02:39]}  cxd4 {[%clk 0:02:53]} 12. Nxd4 {[%clk 0:02:39]}  Bxg2 {[%clk 0:02:51]} 13. Kxg2 {[%clk 0:02:40]}  Nc5 {[%clk 0:02:34]} 14. Qc2 {[%clk 0:02:39]}  Nce4 {[%clk 0:02:07]} 15. Qb3 {[%clk 0:02:36]}  Nc5 {[%clk 0:02:02]} 16. Qc2 {[%clk 0:02:36]}  Nce4 {[%clk 0:01:52]} 17. Qd3 {[%clk 0:02:34]}  Qd5 {[%clk 0:01:44]} 18. f3 {[%clk 0:02:31]}  Nc5 {[%clk 0:01:41]} 19. Qd2 {[%clk 0:02:28]}  Ncd7 {[%clk 0:01:27]} 20. Nc3 {[%clk 0:02:27]}  Qb7 {[%clk 0:01:27]} 21. e4 {[%clk 0:02:05]}  Bc5 {[%clk 0:01:26]} 22. Nb3 {[%clk 0:02:02]}  Bb6 {[%clk 0:01:24]} 23. Qe2 {[%clk 0:02:02]}  O-O {[%clk 0:01:16]} 24. Be3 {[%clk 0:02:01]}  Bxe3 {[%clk 0:01:13]} 25. Qxe3 {[%clk 0:02:02]}  Nb6 {[%clk 0:00:59]} 26. Qe2 {[%clk 0:01:57]}  Nc4 {[%clk 0:00:57]} 27. Rd3 {[%clk 0:01:43]}  Rfd8 {[%clk 0:00:54]} 28. Rad1 {[%clk 0:01:42]}  Rxd3 {[%clk 0:00:53]} 29. Rxd3 {[%clk 0:01:43]}  Qc7 {[%clk 0:00:47]} 30. Nd4 {[%clk 0:01:18]}  h5 {[%clk 0:00:30]} 31. h4 {[%clk 0:01:05]}  g6 {[%clk 0:00:19]} 32. a3 {[%clk 0:00:45]}  Nd7 {[%clk 0:00:18]} 33. Nb3 {[%clk 0:00:37]}  Nde5 {[%clk 0:00:17]} 34. Rd1 {[%clk 0:00:36]}  Nxb2 {[%clk 0:00:17]} 35. Qxb2 {[%clk 0:00:35]}  Qxc3 {[%clk 0:00:17]} 36. Rd8+ {[%clk 0:00:14]}  Kg7 {[%clk 0:00:16]} 37. Qxc3 {[%clk 0:00:12]}  Rxc3 {[%clk 0:00:17]} 38. Nd4 {[%clk 0:00:12]}  Rxa3 {[%clk 0:00:16]} 39. f4 {[%clk 0:00:13]}  Ra2+ {[%clk 0:00:15]} 40. Kf1 {[%clk 0:00:11]}  Ng4 {[%clk 0:00:15]} 41. e5 {[%clk 0:00:10]}  b4 {[%clk 0:00:15]} 42. Rb8 {[%clk 0:00:09]}  a5 {[%clk 0:00:14]} 43. Rb7 {[%clk 0:00:10]}  Kg8 {[%clk 0:00:11]} 44. Rb8+ {[%clk 0:00:09]}  Kh7 {[%clk 0:00:12]} 45. Rb7 {[%clk 0:00:10]}  Nh6 {[%clk 0:00:12]} 46. Nxe6 {[%clk 0:00:09]}  b3 {[%clk 0:00:12]} 47. Nd4 {[%clk 0:00:03]}  b2 {[%clk 0:00:12]} 0-1


[Site "https://www.chess.com"]

[Event "Titled Tuesday Blitz December 20 Early 2022"]
[White "ErikRonka"]
[Black "Hsu, Li Yang"]
[BlackFideId "5800080"]
[WhiteElo "2520"]
[BlackElo "2427"]
[Result "0-1"]
[Round "06"]
[TimeControl "180+2"]
[Date "2022.12.20"]
[WhiteClock "0:00:04"]
[BlackClock "0:00:21"]

1. e4 {[%clk 0:02:53]}  c6 {[%clk 0:03:00]} 2. d4 {[%clk 0:02:53]}  d5 {[%clk 0:03:01]} 3. Nd2 {[%clk 0:02:52]}  dxe4 {[%clk 0:03:00]} 4. Nxe4 {[%clk 0:02:53]}  Nd7 {[%clk 0:03:01]} 5. Ng5 {[%clk 0:02:53]}  Ngf6 {[%clk 0:02:58]} 6. Bd3 {[%clk 0:02:52]}  e6 {[%clk 0:02:51]} 7. N1f3 {[%clk 0:02:50]}  Bd6 {[%clk 0:02:48]} 8. Qe2 {[%clk 0:02:49]}  h6 {[%clk 0:02:34]} 9. Ne4 {[%clk 0:02:47]}  Nxe4 {[%clk 0:02:33]} 10. Qxe4 {[%clk 0:02:48]}  Qc7 {[%clk 0:02:29]} 11. Qg4 {[%clk 0:02:46]}  Kf8 {[%clk 0:02:28]} 12. O-O {[%clk 0:02:46]}  b6 {[%clk 0:02:23]} 13. b3 {[%clk 0:02:46]}  Bb7 {[%clk 0:02:23]} 14. Re1 {[%clk 0:02:46]}  Nf6 {[%clk 0:01:52]} 15. Qh3 {[%clk 0:02:41]}  Nd5 {[%clk 0:01:38]} 16. c4 {[%clk 0:02:40]}  Nf4 {[%clk 0:01:35]} 17. Bxf4 {[%clk 0:02:40]}  Bxf4 {[%clk 0:01:36]} 18. Rad1 {[%clk 0:02:32]}  Rd8 {[%clk 0:01:34]} 19. Be4 {[%clk 0:02:26]}  Bd6 {[%clk 0:01:31]} 20. Qh5 {[%clk 0:01:59]}  g6 {[%clk 0:01:24]} 21. Bxg6 {[%clk 0:01:54]}  fxg6 {[%clk 0:01:25]} 22. Qxg6 {[%clk 0:01:50]}  Qf7 {[%clk 0:01:25]} 23. Qe4 {[%clk 0:01:47]}  c5 {[%clk 0:01:09]} 24. d5 {[%clk 0:01:34]}  exd5 {[%clk 0:01:10]} 25. Qh4 {[%clk 0:01:24]}  Kg7 {[%clk 0:00:54]} 26. Ne5 {[%clk 0:00:59]}  Qf5 {[%clk 0:00:43]} 27. Rd3 {[%clk 0:00:53]}  Rhf8 {[%clk 0:00:30]} 28. Rg3+ {[%clk 0:00:34]}  Kh7 {[%clk 0:00:29]} 29. Rg6 {[%clk 0:00:34]}  Qf4 {[%clk 0:00:25]} 30. Rg4 {[%clk 0:00:16]}  Qf6 {[%clk 0:00:22]} 31. Qg3 {[%clk 0:00:04]}  dxc4 {[%clk 0:00:22]} 32. bxc4 {[%clk 0:00:04]}  Bxe5 {[%clk 0:00:21]} 0-1


[Site "https://www.chess.com"]

[Event "Titled Tuesday Blitz December 20 Early 2022"]
[White "FairChess_on_YouTube"]
[Black "Mikhail_Bryakin"]
[WhiteElo "3072"]
[BlackElo "2765"]
[Result "1-0"]
[Round "06"]
[TimeControl "180+2"]
[Date "2022.12.20"]
[WhiteClock "0:00:23"]
[BlackClock "0:00:06"]

1. d4 {[%clk 0:03:00]}  Nf6 {[%clk 0:02:52]} 2. c4 {[%clk 0:02:58]}  b6 {[%clk 0:02:48]} 3. Nc3 {[%clk 0:02:50]}  Bb7 {[%clk 0:02:46]} 4. d5 {[%clk 0:02:47]}  e6 {[%clk 0:02:43]} 5. a3 {[%clk 0:02:47]}  exd5 {[%clk 0:02:42]} 6. cxd5 {[%clk 0:02:47]}  Na6 {[%clk 0:02:29]} 7. e4 {[%clk 0:02:42]}  Bd6 {[%clk 0:02:29]} 8. f4 {[%clk 0:02:18]}  Bc5 {[%clk 0:02:22]} 9. e5 {[%clk 0:02:14]}  Bxg1 {[%clk 0:01:43]} 10. Rxg1 {[%clk 0:02:10]}  Ng8 {[%clk 0:01:39]} 11. Qg4 {[%clk 0:02:05]}  g6 {[%clk 0:01:35]} 12. Be3 {[%clk 0:01:53]}  h5 {[%clk 0:01:34]} 13. Qf3 {[%clk 0:01:42]}  Nh6 {[%clk 0:01:31]} 14. O-O-O {[%clk 0:01:35]}  Nf5 {[%clk 0:01:27]} 15. Bf2 {[%clk 0:01:35]}  Nc5 {[%clk 0:01:26]} 16. b4 {[%clk 0:01:32]}  Ne6 {[%clk 0:01:22]} 17. Ne4 {[%clk 0:01:20]}  Neg7 {[%clk 0:01:21]} 18. Nf6+ {[%clk 0:01:16]}  Kf8 {[%clk 0:01:21]} 19. g3 {[%clk 0:01:09]}  a5 {[%clk 0:01:21]} 20. b5 {[%clk 0:01:09]}  Qe7 {[%clk 0:00:53]} 21. Qc3 {[%clk 0:01:07]}  Rc8 {[%clk 0:00:10]} 22. Kb2 {[%clk 0:01:07]}  Ne8 {[%clk 0:00:06]} 23. Nxd7+ {[%clk 0:01:05]}  Qxd7 {[%clk 0:00:05]} 24. e6 {[%clk 0:01:05]}  Qd6 {[%clk 0:00:06]} 25. Qxh8+ {[%clk 0:01:05]}  Ke7 {[%clk 0:00:06]} 26. Qc3 {[%clk 0:00:42]}  Nf6 {[%clk 0:00:06]} 27. Bg2 {[%clk 0:00:41]}  Bxd5 {[%clk 0:00:05]} 28. exf7 {[%clk 0:00:31]}  Kxf7 {[%clk 0:00:05]} 29. Rge1 {[%clk 0:00:29]}  Rd8 {[%clk 0:00:05]} 30. Re5 {[%clk 0:00:28]}  c6 {[%clk 0:00:05]} 31. bxc6 {[%clk 0:00:27]}  Qxc6 {[%clk 0:00:06]} 32. Qxc6 {[%clk 0:00:27]}  Bxc6 {[%clk 0:00:05]} 33. Rxd8 {[%clk 0:00:26]}  Bxg2 {[%clk 0:00:06]} 34. Bxb6 {[%clk 0:00:24]}  Ng4 {[%clk 0:00:06]} 35. Bxa5 {[%clk 0:00:23]}  Nxe5 {[%clk 0:00:06]} 36. fxe5 {[%clk 0:00:23]} 1-0


[Site "https://www.chess.com"]

[Event "Titled Tuesday Blitz December 20 Early 2022"]
[White "Flawless_Fighter"]
[Black "Eloisa Navez, Angel"]
[BlackFideId "5117305"]
[WhiteElo "2622"]
[BlackElo "1942"]
[Result "0-1"]
[Round "06"]
[TimeControl "180+2"]
[Date "2022.12.20"]
[WhiteClock "0:00:02"]
[BlackClock "0:00:26"]

1. d4 {[%clk 0:03:00]}  e6 {[%clk 0:03:00]} 2. Nf3 {[%clk 0:02:59]}  Nf6 {[%clk 0:02:59]} 3. Bf4 {[%clk 0:02:58]}  d5 {[%clk 0:02:58]} 4. e3 {[%clk 0:02:59]}  c5 {[%clk 0:02:59]} 5. Nbd2 {[%clk 0:02:58]}  Nc6 {[%clk 0:02:59]} 6. c3 {[%clk 0:02:57]}  Bd6 {[%clk 0:02:59]} 7. Bg3 {[%clk 0:02:57]}  O-O {[%clk 0:02:58]} 8. Bd3 {[%clk 0:02:56]}  b6 {[%clk 0:02:59]} 9. e4 {[%clk 0:02:41]}  Be7 {[%clk 0:02:52]} 10. e5 {[%clk 0:02:40]}  Nh5 {[%clk 0:02:51]} 11. Ng5 {[%clk 0:02:39]}  Bxg5 {[%clk 0:02:50]} 12. Qxh5 {[%clk 0:02:39]}  g6 {[%clk 0:02:49]} 13. Qe2 {[%clk 0:02:39]}  cxd4 {[%clk 0:02:48]} 14. h4 {[%clk 0:02:39]}  Bxd2+ {[%clk 0:02:47]} 15. Qxd2 {[%clk 0:02:40]}  dxc3 {[%clk 0:02:47]} 16. Qxc3 {[%clk 0:02:39]}  Bb7 {[%clk 0:02:36]} 17. Qd2 {[%clk 0:02:37]}  Qe7 {[%clk 0:02:32]} 18. a3 {[%clk 0:02:35]}  Nd4 {[%clk 0:02:27]} 19. Qe3 {[%clk 0:02:26]}  Nb3 {[%clk 0:02:03]} 20. Rd1 {[%clk 0:02:22]}  d4 {[%clk 0:01:52]} 21. Qf4 {[%clk 0:02:15]}  Bxg2 {[%clk 0:01:49]} 22. Rh2 {[%clk 0:02:15]}  Bd5 {[%clk 0:01:40]} 23. h5 {[%clk 0:02:10]}  g5 {[%clk 0:01:29]} 24. Qg4 {[%clk 0:02:05]}  f5 {[%clk 0:01:12]} 25. exf6 {[%clk 0:02:03]}  Qxf6 {[%clk 0:01:12]} 26. f4 {[%clk 0:01:51]}  Nc5 {[%clk 0:01:06]} 27. Be2 {[%clk 0:00:34]}  d3 {[%clk 0:01:02]} 28. Bf1 {[%clk 0:00:34]}  e5 {[%clk 0:00:58]} 29. Qxg5+ {[%clk 0:00:28]}  Qxg5 {[%clk 0:00:57]} 30. fxg5 {[%clk 0:00:29]}  e4 {[%clk 0:00:52]} 31. Bf2 {[%clk 0:00:27]}  Rf5 {[%clk 0:00:50]} 32. g6 {[%clk 0:00:23]}  Raf8 {[%clk 0:00:46]} 33. Bh3 {[%clk 0:00:20]}  Rf3 {[%clk 0:00:44]} 34. Bg4 {[%clk 0:00:18]}  e3 {[%clk 0:00:40]} 35. Bxf3 {[%clk 0:00:13]}  exf2+ {[%clk 0:00:40]} 36. Rxf2 {[%clk 0:00:13]}  Bxf3 {[%clk 0:00:36]} 37. gxh7+ {[%clk 0:00:07]}  Kxh7 {[%clk 0:00:35]} 38. Rc1 {[%clk 0:00:04]}  Ne4 {[%clk 0:00:34]} 39. Rc7+ {[%clk 0:00:04]}  Kh6 {[%clk 0:00:34]} 40. Rc6+ {[%clk 0:00:03]}  Kg5 {[%clk 0:00:31]} 41. Rh2 {[%clk 0:00:02]}  d2+ {[%clk 0:00:29]} 42. Rxd2 {[%clk 0:00:03]}  Nxd2 {[%clk 0:00:28]} 43. Rg6+ {[%clk 0:00:03]}  Kxh5 {[%clk 0:00:28]} 44. Rd6 {[%clk 0:00:03]}  Ne4 {[%clk 0:00:27]} 45. Re6 {[%clk 0:00:03]}  Rf4 {[%clk 0:00:27]} 46. Re5+ {[%clk 0:00:03]}  Kg4 {[%clk 0:00:27]} 47. b4 {[%clk 0:00:03]}  Rf5 {[%clk 0:00:27]} 48. Re8 {[%clk 0:00:04]}  Kf4 {[%clk 0:00:27]} 49. b5 {[%clk 0:00:03]}  Ke3 {[%clk 0:00:27]} 50. Rc8 {[%clk 0:00:02]}  Rxb5 {[%clk 0:00:26]} 0-1


[Site "https://www.chess.com"]